[Event "Western Asian Juniors Chess-ch 2023"]
[Site "Colombo"]
[Date "2023.11.30"]
[Round "2.5"]
[White "Senevirathne, S D B K"]
[Black "Orozbaev, Eldiar"]
[Result "0-1"]
[ECO "B43"]
[WhiteElo "1802"]
[BlackElo "2278"]
[Annotator "RC"]
[PlyCount "174"]
[EventDate "2023.11.30"]
[EventCountry "SRI"]
[SourceTitle "playchess.com"]
[Source "ChessBase"]
[SourceQuality "1"]
[TimeControl "5400+30"]

1. e4 {[%emt 0:00:04]} c5 {[%emt 0:00:07]} 2. Nc3 {[%emt 0:00:09]} e6 {[%emt 0:00:03]} 3. Nf3 {[%emt 0:00:09]} a6 {[%emt 0:00:03]} 4. d4 {[%emt 0:00:07]} cxd4 {[%emt 0:00:04]} 5. Nxd4 {[%emt 0:00:06]} Qc7 {[%emt 0:00:02]} 6. Bd3 {[%emt 0:01:09]} Nc6 {[%emt 0:00:19]} 7. Nxc6 {[%emt 0:00:27]} Qxc6 {[%emt 0:01:07]} 8. O-O {[%emt 0:01:06]} b5 {[%emt 0:00:04]} 9. e5 {[%emt 0:02:12]} Qc7 {[%emt 0:01:13]} 10. Re1 {[%emt 0:02:20]} Bb7 {[%emt 0:01:06]} 11. Bf4 {[%emt 0:16:20]} Ne7 {[%emt 0:01:03]} 12. Be4 {[%emt 0:04:41]} Nc6 {[%emt 0:00:56]} 13. a3 {[%emt 0:01:22]} O-O-O {[%emt 0:01:28]} 14. Bg5 {[%emt 0:02:04]} Re8 {[%emt 0:01:02]} 15. Qf3 {[%emt 0:00:23]} Bc5 {[%emt 0:03:34]} 16. Rad1 {[%emt 0:06:42]} f5 {[%emt 0:02:38]} 17. exf6 {[%emt 0:00:52]} gxf6 {[%emt 0:00:04]} 18. Bf4 {[%emt 0:00:31]} Qb6 {[%emt 0:00:32]} 19. b4 {[%emt 0:00:55]} Bd4 {[%emt 0:00:43]} 20. Ne2 {[%emt 0:10:59]} Be5 {[%emt 0:03:27]} 21. Bxe5 {[%emt 0:00:56]} fxe5 {[%emt 0:00:10]} 22. Rd6 {[%emt 0:00:17]} Ref8 {[%emt 0:01:46]} 23. Qe3 {[%emt 0:01:29]} Qxe3 {[%emt 0:00:23]} 24. fxe3 {[%emt 0:00:07]} Kc7 {[%emt 0:00:08]} 25. Red1 {[%emt 0:00:21]} Rf7 {[%emt 0:00:08]} 26. Nc1 {[%emt 0:03:04]} Ba8 {[%emt 0:04:13]} 27. Nb3 {[%emt 0:07:55]} Nd4 {[%emt 0:00:35]} 28. Bxa8 {[%emt 0:00:40]} Rxa8 {[%emt 0:00:06]} 29. Nxd4 {[%emt 0:01:07]} Kxd6 {[%emt 0:00:04]} 30. Nxb5+ {[%emt 0:00:41]} Ke7 {[%emt 0:02:29]} 31. Nd6 {[%emt 0:00:05]} Rf6 {[%emt 0:00:07]} 32. c4 {[%emt 0:00:15]} Raf8 {[%emt 0:00:51]} 33. Ne4 {[%emt 0:00:15]} Rg6 {[%emt 0:00:40]} 34. Nc5 {[%emt 0:00:21]} d6 {[%emt 0:00:25]} 35. Nxa6 {[%emt 0:00:35]} Rgf6 {[%emt 0:00:04]} 36. c5 {[%emt 0:00:44]} dxc5 {[%emt 0:05:59]} 37. Nxc5 {[%emt 0:00:28]} Rf2 {[%emt 0:00:46]} 38. h4 {[%emt 0:01:38]} Ra2 {[%emt 0:04:09]} 39. Rd7+ {[%emt 0:00:17]} Kf6 {[%emt 0:00:04]} 40. Rxh7 {[%emt 0:04:18]} Kg6 {[%emt 0:04:24]} 41. Re7 {[%emt 0:02:59]} Rff2 {[%emt 0:00:06]} 42. Kh2 {[%emt 0:00:57]} Rxg2+ {[%emt 0:00:11]} 43. Kh3 {[%emt 0:00:07]} Rge2 {[%emt 0:05:57]} 44. Kg4 {[%emt 0:05:02]} Rxe3 {[%emt 0:00:20]} 45. h5+ {[%emt 0:00:33]} Kf6 {[%emt 0:00:11]} 46. Rxe6+ {[%emt 0:00:04]} Kf7 {[%emt 0:00:04]} 47. a4 {[%emt 0:01:14]} Rxa4 {[%emt 0:08:29]} 48. Rb6 {[%emt 0:00:38]} Ra1 {[%emt 0:00:05]} 49. Rb7+ {[%emt 0:01:02]} Kf6 {[%emt 0:00:04]} 50. Rb6+ {[%emt 0:00:05]} Ke7 {[%emt 0:00:04]} 51. Rb7+ {[%emt 0:00:25]} Kd6 {[%emt 0:00:04]} 52. Rd7+ {[%emt 0:00:29]} Kc6 {[%emt 0:00:05]} 53. h6 {[%emt 0:00:08]} Rb1 {[%emt 0:03:19]} 54. Rb7 {[%emt 0:01:18]} Rh1 {[%emt 0:01:50]} 55. Ra7 {[%emt 0:00:50]} Reh3 {[%emt 0:01:04]} 56. Kg5 {[%emt 0:00:12]} Rh5+ {[%emt 0:00:04]} 57. Kf6 {[%emt 0:00:16]} Rf1+ {[%emt 0:03:13]} 58. Kg6 {[%emt 0:01:44]} Rh4 {[%emt 0:01:54]} 59. Re7 {[%emt 0:01:56]} Rg4+ {[%emt 0:02:04]} 60. Kh7 {[%emt 0:00:13]} Kd5 {[%emt 0:00:24]} 61. Rg7 {[%emt 0:02:41]} Rxb4 {[%emt 0:00:58]} 62. Nd7 {[%emt 0:00:27]} Rh4 {[%emt 0:02:37]} 63. Rg6 {[%emt 0:02:33]} e4 {[%emt 0:01:06]} 64. Nb6+ {[%emt 0:04:51]} Kd4 {[%emt 0:00:24]} 65. Rd6+ {[%emt 0:00:54]} Kc5 {[%emt 0:00:07]} 66. Re6 {[%emt 0:00:07]} Rf7+ {[%emt 0:00:45]} 67. Kg6 {[%emt 0:02:18]} Rb7 {[%emt 0:00:41]} 68. Nc8 {[%emt 0:00:17]} Kd5 {[%emt 0:01:43]} 69. Re8 {[%emt 0:00:14]} Kd4 {[%emt 0:06:02]} 70. Ne7 {[%emt 0:00:29]} Rb6+ {[%emt 0:01:15]} 71. Kg5 {[%emt 0:00:21]} Rh2 {[%emt 0:00:10]} 72. Nf5+ {[%emt 0:00:20]} Kd3 {[%emt 0:00:06]} 73. Re7 {[%emt 0:02:50]} Rg2+ {[%emt 0:01:02]} 74. Kh4 {[%emt 0:01:33]} Rbg6 {[%emt 0:01:04]} 75. Kh3 {[%emt 0:01:36]} R2g5 {[%emt 0:00:08]} 76. Rd7+ {[%emt 0:00:29]} Kc3 {[%emt 0:00:28]} 77. Rc7+ {[%emt 0:00:28]} Kd2 {[%emt 0:00:23]} 78. Rd7+ {[%emt 0:00:06]} Ke1 {[%emt 0:00:19]} 79. Nh4 {[%emt 0:00:41]} Re6 {[%emt 0:04:28]} 80. h7 {[%emt 0:00:20]} Rh5 {[%emt 0:00:32]} 81. Kg3 {[%emt 0:01:01]} e3 {[%emt 0:01:54]} 82. Ng2+ {[%emt 0:04:23]} Kf1 {[%emt 0:00:06]} 83. Rf7+ {[%emt 0:01:54]} Kg1 {[%emt 0:00:20]} 84. Kg4 {[%emt 0:00:34]} Rxh7 {[%emt 0:00:31]} 85. Rxh7 {[%emt 0:00:25]} Kxg2 {[%emt 0:00:03]} 86. Ra7 {[%emt 0:00:11]} e2 {[%emt 0:00:05]} 87. Ra2 {[%emt 0:00:03]} Kf1 {[%emt 0:00:02]} 0-1

[Event "Western Asian Juniors Chess-ch 2023"]
[Site "Colombo"]
[Date "2023.11.30"]
[Round "2.6"]
[White "Galkotuwa, K A R G W D R B G"]
[Black "Mazhkenov, Alisher"]
[Result "0-1"]
[ECO "B90"]
[WhiteElo "1532"]
[BlackElo "2105"]
[Annotator "NA RC"]
[PlyCount "70"]
[EventDate "2023.11.30"]
[EventCountry "SRI"]
[SourceTitle "playchess.com"]
[Source "ChessBase"]
[SourceQuality "1"]
[TimeControl "5400+30"]

1. e4 {[%emt 0:00:07]} c5 {[%emt 0:00:30]} 2. Nf3 {[%emt 0:00:57]} d6 {[%emt 0:02:52]} 3. d4 {[%emt 0:01:42]} cxd4 {[%emt 0:00:08]} 4. Nxd4 {[%emt 0:00:14]} Nf6 {[%emt 0:00:08]} 5. Nc3 {[%emt 0:01:04]} a6 {[%emt 0:00:07]} 6. Be3 {[%emt 0:02:36]} e5 {[%emt 0:00:08]} 7. Nb3 {[%emt 0:00:20]} Be6 {[%emt 0:00:12]} 8. f3 {[%emt 0:01:44]} h5 {[%emt 0:00:13]} 9. Be2 {[%emt 0:00:52]} Nbd7 {[%emt 0:14:16]} 10. Qd2 {[%emt 0:02:29]} Rc8 {[%emt 0:03:24]} 11. Rd1 {[%emt 0:04:08]} Be7 {[%emt 0:05:51]} 12. O-O {[%emt 0:02:27]} O-O {[%emt 0:03:33]} 13. f4 {[%emt 0:03:13]} b5 {[%emt 0:08:36]} 14. f5 {[%emt 0:08:42]} Bc4 {[%emt 0:06:20]} 15. Rf3 {[%emt 0:05:43]} b4 {[%emt 0:17:40]} 16. Bxc4 {[%emt 0:07:05]} Rxc4 {[%emt 0:03:10]} 17. Nd5 {[%emt 0:03:31]} Nxd5 {[%emt 0:00:30]} 18. exd5 {[%emt 0:01:48]} Qc7 {[%emt 0:02:11]} 19. Na1 {[%emt 0:01:26]} Nf6 {[%emt 0:03:19]} 20. b3 {[%emt 0:03:42]} Rc3 {[%emt 0:02:11]} 21. Qe2 {[%emt 0:01:52]} Ng4 {[%emt 0:01:52]} 22. Bd2 {[%emt 0:02:16]} Qc5+ {[%emt 0:00:33]} 23. Kh1 {[%emt 0:00:30]} Rxf3 {[%emt 0:00:30]} 24. gxf3 {[%emt 0:00:30]} Nf2+ {[%emt 0:00:30]} 25. Kg2 {[%emt 0:00:30]} Nxd1 {[%emt 0:00:30]} 26. Qxd1 {[%emt 0:01:16]} Qd4 {[%emt 0:00:33]} 27. Qc1 {[%emt 0:00:58]} e4 {[%emt 0:00:35]} 28. c3 {[%emt 0:00:56]} exf3+ {[%emt 0:00:18]} 29. Kxf3 {[%emt 0:00:20]} Qd3+ {[%emt 0:00:30]} 30. Kf2 {[%emt 0:00:46]} Bh4+ {[%emt 0:00:06]} 31. Kg1 {[%emt 0:00:11]} Re8 {[%emt 0:00:16]} 32. Nc2 {[%emt 0:01:06]} Re4 {[%emt 0:00:31]} 33. Ne3 {[%emt 0:02:04]} bxc3 {[%emt 0:00:25]} 34. Qxc3 {[%emt 0:00:25]} Qxc3 {[%emt 0:00:09]} 35. Bxc3 {[%emt 0:00:15]} Rxe3 {[%emt 0:00:04]} 0-1

[Event "Western Asian Juniors Chess-ch 2023"]
[Site "Colombo"]
[Date "2023.11.30"]
[Round "2.7"]
[White "Hommadov, Amanmuhammet"]
[Black "Senevirathne, D C B K"]
[Result "1-0"]
[ECO "B22"]
[WhiteElo "2055"]
[BlackElo "1482"]
[Annotator "NA RC"]
[PlyCount "47"]
[EventDate "2023.11.30"]
[EventCountry "SRI"]
[SourceTitle "playchess.com"]
[Source "ChessBase"]
[SourceQuality "1"]
[TimeControl "5400+30"]

1. e4 {[%emt 0:03:58]} c5 {[%emt 0:00:07]} 2. Nf3 {[%emt 0:00:05]} e6 {[%emt 0:00:22]} 3. c3 {[%emt 0:00:07]} Nc6 {[%emt 0:01:58]} 4. d4 {[%emt 0:00:05]} cxd4 {[%emt 0:01:15]} 5. cxd4 {[%emt 0:00:03]} Nf6 {[%emt 0:00:17]} 6. Nc3 {[%emt 0:00:10]} Bb4 {[%emt 0:00:32]} 7. Bd3 {[%emt 0:00:07]} d5 {[%emt 0:00:56]} 8. e5 {[%emt 0:00:05]} Ne4 {[%emt 0:00:27]} 9. O-O {[%emt 0:00:11]} Nxc3 {[%emt 0:03:06]} 10. bxc3 {[%emt 0:00:04]} Bxc3 {[%emt 0:00:37]} 11. Rb1 {[%emt 0:00:08]} Qa5 {[%emt 0:03:04]} 12. a3 {[%emt 0:16:14]} Bxd4 {[%emt 0:06:48]} 13. Nxd4 {[%emt 0:00:35]} Nxd4 {[%emt 0:00:06]} 14. Qg4 {[%emt 0:00:26]} Nc6 {[%emt 0:04:50]} 15. Qxg7 {[%emt 0:00:10]} Rf8 {[%emt 0:00:03]} 16. Bh6 {[%emt 0:17:51]} Qxa3 {[%emt 0:01:03]} 17. Rfc1 {[%emt 0:00:13]} Bd7 {[%emt 0:06:28]} 18. Rc3 {[%emt 0:00:21]} Qe7 {[%emt 0:01:08]} 19. Rxb7 {[%emt 0:00:19]} Rb8 {[%emt 0:09:28]} 20. Rxb8+ {[%emt 0:01:39]} Nxb8 {[%emt 0:00:06]} 21. Rb3 {[%emt 0:00:11]} Nc6 {[%emt 0:01:39]} 22. Rb7 {[%emt 0:00:07]} Nd8 {[%emt 0:00:40]} 23. Rxa7 {[%emt 0:00:11]} Nc6 {[%emt 0:03:14]} 24. Ra8+ {[%emt 0:00:06]} 1-0

[Event "Western Asian Juniors Chess-ch 2023"]
[Site "Colombo"]
[Date "2023.11.30"]
[Round "2.8"]
[White "Mujahid Bin Yazeed"]
[Black "Thilakarathne, G M H"]
[Result "0-1"]
[ECO "B06"]
[WhiteElo "1832"]
[BlackElo "2389"]
[Annotator "RC"]
[PlyCount "56"]
[EventDate "2023.11.30"]
[EventCountry "SRI"]
[SourceTitle "playchess.com"]
[Source "ChessBase"]
[SourceQuality "1"]
[TimeControl "5400+30"]

1. e4 {[%emt 0:03:00]} g6 {[%emt 0:00:10]} 2. d4 {[%emt 0:00:45]} Bg7 {[%emt 0:00:07]} 3. Nf3 {[%emt 0:00:51]} d6 {[%emt 0:02:13]} 4. Nc3 {[%emt 0:00:52]} a6 {[%emt 0:03:12]} 5. a4 {[%emt 0:01:24]} Nd7 {[%emt 0:02:38]} 6. Bc4 {[%emt 0:03:34]} e6 {[%emt 0:00:18]} 7. h4 {[%emt 0:02:09]} h6 {[%emt 0:02:08]} 8. Ne2 {[%emt 0:02:28]} Ne7 {[%emt 0:12:07]} 9. Bb3 {[%emt 0:05:23]} d5 {[%emt 0:22:05]} 10. e5 {[%emt 0:00:59]} c5 {[%emt 0:00:22]} 11. c3 {[%emt 0:00:15]} b6 {[%emt 0:01:01]} 12. Bc2 {[%emt 0:04:04]} a5 {[%emt 0:00:37]} 13. h5 {[%emt 0:04:45]} g5 {[%emt 0:01:28]} 14. O-O {[%emt 0:04:28]} Ba6 {[%emt 0:00:39]} 15. Ne1 {[%emt 0:04:28]} Nc6 {[%emt 0:04:12]} 16. Nd3 {[%emt 0:08:18]} Qe7 {[%emt 0:09:54]} 17. b3 {[%emt 0:04:09]} f5 {[%emt 0:08:39]} 18. exf6 {[%emt 0:03:23]} Bxf6 {[%emt 0:02:28]} 19. Re1 {[%emt 0:02:46]} O-O-O {[%emt 0:09:54]} 20. Ba3 {[%emt 0:04:48]} e5 {[%emt 0:11:41]} 21. dxc5 {[%emt 0:04:22]} bxc5 {[%emt 0:01:59]} 22. Nd4 {[%emt 0:00:26]} Qd6 {[%emt 0:01:01]} 23. Nf5 {[%emt 0:05:54]} Qf8 {[%emt 0:01:18]} 24. Qg4 {[%emt 0:03:57]} Kc7 {[%emt 0:01:07]} 25. Nxc5 {[%emt 0:02:00]} Nxc5 {[%emt 0:00:09]} 26. b4 {[%emt 0:00:05]} e4 {[%emt 0:00:17]} 27. b5 {[%emt 0:13:14]} Bc8 {[%emt 0:01:07]} 28. bxc6 {[%emt 0:02:06]} Be5 {[%emt 0:01:39]} 0-1

[Event "Western Asian Juniors Chess-ch 2023"]
[Site "Colombo"]
[Date "2023.12.01"]
[Round "3.1"]
[White "Mazhkenov, Alisher"]
[Black "Harshavardhan G B"]
[Result "0-1"]
[ECO "C88"]
[WhiteElo "2105"]
[BlackElo "2390"]
[Annotator "RC"]
[PlyCount "134"]
[EventDate "2023.11.30"]
[EventCountry "SRI"]
[SourceTitle "playchess.com"]
[Source "ChessBase"]
[SourceQuality "1"]
[TimeControl "5400+30"]

1. e4 {[%emt 0:00:03]} e5 {[%emt 0:03:14]} 2. Nf3 {[%emt 0:00:10]} Nc6 {[%emt 0:00:15]} 3. Bb5 {[%emt 0:00:26]} a6 {[%emt 0:00:32]} 4. Ba4 {[%emt 0:00:11]} Nf6 {[%emt 0:00:10]} 5. O-O {[%emt 0:00:29]} Be7 {[%emt 0:00:10]} 6. Re1 {[%emt 0:01:52]} b5 {[%emt 0:00:13]} 7. Bb3 {[%emt 0:00:10]} O-O {[%emt 0:00:11]} 8. a4 {[%emt 0:02:05]} Bb7 {[%emt 0:00:31]} 9. d3 {[%emt 0:09:14]} d6 {[%emt 0:02:34]} 10. Nc3 {[%emt 0:02:23]} Na5 {[%emt 0:06:24]} 11. Ba2 {[%emt 0:12:13]} b4 {[%emt 0:01:16]} 12. Ne2 {[%emt 0:00:49]} c5 {[%emt 0:00:18]} 13. Ng3 {[%emt 0:01:16]} Bc8 {[%emt 0:04:20]} 14. h3 {[%emt 0:08:14]} b3 {[%emt 0:02:25]} 15. cxb3 {[%emt 0:04:27]} Nc6 {[%emt 0:01:41]} 16. b4 {[%emt 0:05:52]} Nxb4 {[%emt 0:01:21]} 17. Bc4 {[%emt 0:00:25]} Ne8 {[%emt 0:11:10]} 18. Bd2 {[%emt 0:03:14]} Rb8 {[%emt 0:01:05]} 19. Nf1 {[%emt 0:08:51]} Nc7 {[%emt 0:02:25]} 20. Ne3 {[%emt 0:02:23]} g6 {[%emt 0:10:01]} 21. Bc3 {[%emt 0:03:20]} Be6 {[%emt 0:01:08]} 22. Qd2 {[%emt 0:05:11]} Bg5 {[%emt 0:06:47]} 23. Qe2 {[%emt 0:03:48]} Bh6 {[%emt 0:01:49]} 24. Nc2 {[%emt 0:02:23]} Nxc2 {[%emt 0:05:30]} 25. Qxc2 {[%emt 0:00:11]} Bxc4 {[%emt 0:00:48]} 26. dxc4 {[%emt 0:00:09]} Ne6 {[%emt 0:00:07]} 27. Rab1 {[%emt 0:08:50]} Nd4 {[%emt 0:03:20]} 28. Bxd4 {[%emt 0:02:10]} cxd4 {[%emt 0:00:24]} 29. Re2 {[%emt 0:06:26]} Qb6 {[%emt 0:03:01]} 30. b3 {[%emt 0:01:24]} Qc6 {[%emt 0:00:15]} 31. Ne1 {[%emt 0:00:52]} f5 {[%emt 0:01:21]} 32. b4 {[%emt 0:02:19]} fxe4 {[%emt 0:02:29]} 33. Rxe4 {[%emt 0:00:16]} Rfc8 {[%emt 0:00:32]} 34. c5 {[%emt 0:00:35]} Bg7 {[%emt 0:00:25]} 35. Re2 {[%emt 0:01:28]} dxc5 {[%emt 0:03:48]} 36. Qc4+ {[%emt 0:00:23]} Kh8 {[%emt 0:01:16]} 37. b5 {[%emt 0:02:36]} axb5 {[%emt 0:00:58]} 38. axb5 {[%emt 0:00:43]} Qe8 {[%emt 0:00:44]} 39. Nd3 {[%emt 0:00:47]} Qg8 {[%emt 0:00:40]} 40. Rc1 {[%emt 0:00:31]} Qxc4 {[%emt 0:00:33]} 41. Rxc4 {[%emt 0:00:04]} Rxb5 {[%emt 0:00:09]} 42. Rec2 {[%emt 0:01:14]} Rb1+ {[%emt 0:01:48]} 43. Kh2 {[%emt 0:00:53]} e4 {[%emt 0:00:10]} 44. Rxc5 {[%emt 0:00:33]} Rxc5 {[%emt 0:01:09]} 45. Nxc5 {[%emt 0:00:06]} Be5+ {[%emt 0:00:26]} 46. g3 {[%emt 0:00:06]} d3 {[%emt 0:01:57]} 47. Ra2 {[%emt 0:00:07]} Re1 {[%emt 0:00:26]} 48. Ra8+ {[%emt 0:01:06]} Kg7 {[%emt 0:00:15]} 49. Rd8 {[%emt 0:00:08]} Bc3 {[%emt 0:03:56]} 50. Rd7+ {[%emt 0:00:47]} Kf6 {[%emt 0:00:37]} 51. Nxe4+ {[%emt 0:01:05]} Rxe4 {[%emt 0:00:17]} 52. Rxd3 {[%emt 0:00:04]} Bd4 {[%emt 0:02:22]} 53. Kg2 {[%emt 0:00:12]} Bc5 {[%emt 0:01:52]} 54. Kf3 {[%emt 0:00:22]} Rc4 {[%emt 0:00:57]} 55. Rd2 {[%emt 0:00:23]} Rc3+ {[%emt 0:00:08]} 56. Kg2 {[%emt 0:00:24]} Ke6 {[%emt 0:00:17]} 57. h4 {[%emt 0:00:18]} Rb3 {[%emt 0:00:09]} 58. Re2+ {[%emt 0:01:18]} Kd5 {[%emt 0:00:17]} 59. g4 {[%emt 0:01:10]} h6 {[%emt 0:01:01]} 60. g5 {[%emt 0:00:26]} h5 {[%emt 0:01:07]} 61. Re8 {[%emt 0:00:34]} Rb6 {[%emt 0:05:24]} 62. Rg8 {[%emt 0:00:27]} Ke5 {[%emt 0:00:22]} 63. Rc8 {[%emt 0:00:22]} Bd4 {[%emt 0:00:41]} 64. Rf8 {[%emt 0:00:08]} Rb2 {[%emt 0:00:20]} 65. Kg3 {[%emt 0:01:03]} Bxf2+ {[%emt 0:01:02]} 66. Kh3 {[%emt 0:00:27]} Rb3+ {[%emt 0:00:08]} 67. Kg2 {[%emt 0:00:04]} Bxh4 {[%emt 0:00:13]} 0-1

[Event "Western Asian Juniors Chess-ch 2023"]
[Site "Colombo"]
[Date "2023.12.01"]
[Round "3.2"]
[White "Orozbaev, Eldiar"]
[Black "Hommadov, Amanmuhammet"]
[Result "0-1"]
[ECO "B22"]
[WhiteElo "2278"]
[BlackElo "2055"]
[Annotator "ChessBase"]
[PlyCount "132"]
[EventDate "2023.11.30"]
[EventCountry "SRI"]
[SourceTitle "playchess.com"]
[Source "ChessBase"]
[SourceQuality "1"]
[TimeControl "5400+30"]

1. e4 {[%emt 0:00:07]} c5 {[%emt 0:00:15]} 2. c3 {[%emt 0:00:05]} Nf6 {[%emt 0:00:04]} 3. e5 {[%emt 0:00:04]} Nd5 {[%emt 0:00:05]} 4. d4 {[%emt 0:00:03]} cxd4 {[%emt 0:00:24]} 5. Nf3 {[%emt 0:00:04]} Nc6 {[%emt 0:00:04]} 6. cxd4 {[%emt 0:00:04]} d6 {[%emt 0:00:03]} 7. Bc4 {[%emt 0:00:05]} Nb6 {[%emt 0:00:17]} 8. Bb5 {[%emt 0:00:08]} dxe5 {[%emt 0:00:01]} 9. Nxe5 {[%emt 0:00:06]} Bd7 {[%emt 0:00:31]} 10. Nc3 {[%emt 0:00:05]} Nxe5 {[%emt 0:00:09]} 11. dxe5 {[%emt 0:00:04]} Bxb5 {[%emt 0:00:07]} 12. Nxb5 {[%emt 0:00:04]} Qxd1+ {[%emt 0:00:05]} 13. Kxd1 {[%emt 0:00:05]} O-O-O+ {[%emt 0:00:07]} 14. Ke2 {[%emt 0:00:04]} Rd5 {[%emt 0:00:59]} 15. a4 {[%emt 0:00:04]} Rxe5+ {[%emt 0:00:05]} 16. Be3 {[%emt 0:00:03]} Nd5 {[%emt 0:07:33]} 17. Rac1+ {[%emt 0:02:13]} Kb8 {[%emt 0:03:16]} 18. Rhd1 {[%emt 0:00:05]} e6 {[%emt 0:09:02]} 19. Kf3 {[%emt 0:00:04]} Rf5+ {[%emt 0:00:21]} 20. Ke2 {[%emt 0:00:04]} Re5 {[%emt 0:00:03]} 21. Kf3 {[%emt 0:00:04]} Rf5+ {[%emt 0:00:01]} 22. Ke2 {[%emt 0:00:07]} Re5 {[%emt 0:00:01]} 23. Rxd5 {[%emt 0:04:33]} exd5 {[%emt 0:00:29]} 24. Kd3 {[%emt 0:00:03]} Rxe3+ {[%emt 0:00:36]} 25. fxe3 {[%emt 0:00:10]} a6 {[%emt 0:05:41]} 26. Nc3 {[%emt 0:00:06]} Bd6 {[%emt 0:00:06]} 27. Nxd5 {[%emt 0:02:25]} Bxh2 {[%emt 0:01:12]} 28. e4 {[%emt 0:00:03]} Be5 {[%emt 0:00:10]} 29. b4 {[%emt 0:00:05]} h5 {[%emt 0:01:19]} 30. b5 {[%emt 0:00:43]} axb5 {[%emt 0:02:08]} 31. axb5 {[%emt 0:00:04]} h4 {[%emt 0:05:17]} 32. Rh1 {[%emt 0:02:15]} g5 {[%emt 0:00:17]} 33. Rf1 {[%emt 0:09:56]} g4 {[%emt 0:14:35]} 34. Ne3 {[%emt 0:00:06]} Rd8+ {[%emt 0:00:01]} 35. Ke2 {[%emt 0:00:23]} Rd4 {[%emt 0:00:34]} 36. Rxf7 {[%emt 0:48:30]} Rxe4 {[%emt 0:00:06]} 37. Re7 {[%emt 0:00:05]} h3 {[%emt 0:00:55]} 38. gxh3 {[%emt 0:00:06]} gxh3 {[%emt 0:00:01]} 39. Kf3 {[%emt 0:00:01]} Rh4 {[%emt 0:02:05]} 40. b6 {[%emt 0:01:44]} Kc8 {[%emt 0:00:55]} 41. Rxe5 {[%emt 0:01:53]} h2 {[%emt 0:00:18]} 42. Rc5+ {[%emt 0:00:03]} Kd7 {[%emt 0:00:05]} 43. Rc1 {[%emt 0:00:10]} h1=Q+ {[%emt 0:51:37]} 44. Rxh1 {[%emt 0:00:06]} Rxh1 {[%emt 0:00:00]} 45. Nc4 {[%emt 0:00:07]} Kc6 {[%emt 0:00:00]} 46. Ke4 {[%emt 0:00:06]} Kc5 {[%emt 0:00:00]} 47. Nd2 {[%emt 0:02:03]} Kxb6 {[%emt 0:00:00]} 48. Kd4 {[%emt 0:00:04]} Kc6 {[%emt 0:00:00]} 49. Nc4 {[%emt 0:00:06]} Rh4+ {[%emt 0:00:00]} 50. Kc3 {[%emt 0:00:02]} Kc5 {[%emt 0:00:00]} 51. Na5 {[%emt 0:00:04]} Rh3+ {[%emt 0:00:00]} 52. Kb2 {[%emt 0:00:05]} b5 {[%emt 0:00:00]} 53. Nb3+ {[%emt 0:00:06]} Kb4 {[%emt 0:00:00]} 54. Nd4 {[%emt 0:00:03]} Rh2+ {[%emt 0:00:00]} 55. Nc2+ {[%emt 0:00:04]} Ka4 {[%emt 0:00:00]} 56. Kc3 {[%emt 0:00:05]} Rh3+ {[%emt 0:00:00]} 57. Kb2 {[%emt 0:00:04]} b4 {[%emt 0:00:00]} 58. Nd4 {[%emt 0:00:11]} Rh2+ {[%emt 0:00:00]} 59. Kb1 {[%emt 0:00:02]} b3 {[%emt 0:00:00]} 60. Nf3 {[%emt 0:00:07]} Rf2 {[%emt 0:00:00]} 61. Nd4 {[%emt 0:00:02]} Rg2 {[%emt 0:00:00]} 62. Ka1 {[%emt 0:00:11]} Ka3 {[%emt 0:00:00]} 63. Nb5+ {[%emt 0:00:06]} Kb4 {[%emt 0:00:00]} 64. Nd4 {[%emt 0:00:21]} Kc4 {[%emt 0:00:00]} 65. Nf3 {[%emt 0:01:17]} Kc3 {[%emt 0:00:00]} 66. Kb1 {[%emt 0:00:04]} Rf2 {[%emt 0:00:00]} 0-1

[Event "Western Asian Juniors Chess-ch 2023"]
[Site "Colombo"]
[Date "2023.12.01"]
[Round "3.3"]
[White "Liyanage, Pesandu Rashmitha"]
[Black "Liyanage, Ranindu Dilshan"]
[Result "0-1"]
[ECO "E08"]
[WhiteElo "1766"]
[BlackElo "2400"]
[Annotator "TA"]
[PlyCount "48"]
[EventDate "2023.11.30"]
[EventCountry "SRI"]
[SourceTitle "playchess.com"]
[Source "ChessBase"]
[SourceQuality "1"]
[TimeControl "5400+30"]

{[%evp 14,48,28,16,33,-73,-68,-64,-60,-138,-143,-179,-176,-252,-210,-270,-211,-427,-427,-437,-403,-418,-308,-294,-321,-256,-235,-260,-258,-263,-252,-383,-338,-339,-343,-541,-541]} 1. d4 {[%emt 0:09:46]} d5 {[%emt 0:00:31]} 2. c4 {[%emt 0:00:02]} e6 {[%emt 0:00:15]} 3. Nf3 {[%emt 0:00:03]} Nf6 {[%emt 0:00:07]} 4. g3 {[%emt 0:00:01]} Be7 {[%emt 0:03:08]} 5. Bg2 {[%emt 0:00:05]} c6 {[%emt 0:00:34]} 6. O-O {[%emt 0:01:06]} Nbd7 {[%emt 0:00:10]} 7. Qc2 {[%emt 0:03:14]} O-O {[%emt 0:10:55]} 8. Rd1 {[%emt 0:01:00]} a5 {[%emt 0:00:43] [#] E08: Closed Catalan: Main Line: 7 Qc2.} 9. Ne5 $146 {[%emt 0:06:21]} (9. Nbd2 $14 {stays ahead.}) ({Predecessor:} 9. Nbd2 b6 10. e4 Ba6 11. b3 Rc8 12. Bb2 h6 13. Rac1 Bb4 14. Qb1 Nxe4 15. Nxe4 dxe4 16. Qxe4 {1-0 Le,Q (2709)-Andreikin,D (2729) Chess.com Rapid Wk12 Swiss 2022 (2)}) 9... Nxe5 $17 {[%emt 0:09:20]} 10. dxe5 {[%emt 0:00:09]} Ng4 {[%emt 0:02:40] Black is slightly better.} 11. e4 {[%emt 0:20:13] [#]} (11. Nc3 $15) 11... Bc5 $1 {[%emt 0:18:43][%cal Be7c5,Bc5f2,Bf2d4][%mdl 32] Black is more active.} (11... Nxe5 $6 12. cxd5 exd5 13. Bf4 $11) 12. Rd2 {[%emt 0:14:46][%cal Rc4d5]} d4 {[%emt 0:00:46][%cal Bd5d4,Bd4d3][%mdl 32]} (12... Nxe5 13. exd5 Qf6 14. dxc6 bxc6 15. Nc3 $11) 13. Nc3 {[%emt 0:00:57]} (13. b3 {was called for.}) 13... Nxe5 {[%emt 0:02:26][%cal Od4d3]} 14. Rd1 {[%emt 0:09:00]} d3 {[%emt 0:02:37]} (14... Nxc4 15. Na4 Ba7 16. Qxc4 $11) 15. Qb3 {[%emt 0:01:08] [#]} (15. Qd2) 15... Bxf2+ $1 $19 {[%emt 0:03:36][%mdl 576] Decoy} 16. Kh1 {[%emt 0:07:38]} (16. Kxf2 $2 {is the wrong capture.} Qd4+ 17. Kf1 Ng4) 16... Bd4 {[%emt 0:10:58]} 17. h3 {[%emt 0:01:00]} Qe7 {[%emt 0:00:49]} 18. Bf4 {[%emt 0:02:49]} Rd8 {[%emt 0:03:43]} 19. Na4 {[%emt 0:05:09]} Ng6 {[%emt 0:27:59]} 20. Rxd3 {[%emt 0:01:59]} e5 {[%emt 0:00:00]} 21. Be3 {[%emt 0:00:42]} Be6 {[%emt 0:00:00][%cal Ob7b5] And now ...b5! would win.} 22. Nb6 {[%emt 0:01:54]} (22. Bxd4 $142 exd4 23. Qd1) 22... Ra6 {[%emt 0:00:00]} 23. Bxd4 {[%emt 0:00:32]} exd4 {[%emt 0:00:00]} (23... Rxd4 $2 {perishes.} 24. Rdd1) 24. Rad1 {[%emt 0:00:40] [#]} (24. Nd5 $142 cxd5 25. exd5) 24... a4 $1 {[%emt 0:00:00][%mdl 512] White got outplayed after the opening.   Weighted Error Value: White=0.56/Black=0.22 (precise)} 0-1